fUSD/lending_fUSD_20250110
["ID","MTS","AMOUNT","RATE_DAILY","PERIOD"]
[348388121,1736497837643,-697.14,9.996e-05,2]
[348388122,1736497837652,-905.19,9.996e-05,2]
[348388123,1736497837662,-1491.26,9.996e-05,2]
[348388124,1736497837671,-18984.87538082,9.996e-05,2]
[348388125,1736497837680,-595.48,9.996e-05,2]
[348388126,1736497837689,-472.105227,9.996e-05,2]
[348388127,1736497837698,-6898.34,9.996e-05,2]
[348388128,1736497837708,-634.07,9.996e-05,2]
[348388129,1736497837719,-500.0,9.996e-05,2]
[348388130,1736497837728,-840.68,9.996e-05,2]
[348388131,1736497837737,-511.71549391,9.996e-05,2]
[348388133,1736497837746,-500.0,9.996e-05,2]
[348388135,1736497837755,-447.149289,9.996e-05,2]
[348388137,1736497837765,-1087.49,9.996e-05,2]
[348388139,1736497837774,-2621.17,9.996e-05,2]
[348388141,1736497837784,-1224.26,9.996e-05,2]
[348388143,1736497837794,-888.7,9.996e-05,2]
[348388145,1736497837803,-1141.83,9.996e-05,2]
[348388147,1736497837812,-901.92,9.996e-05,2]
[348388148,1736497837822,-500.0,9.996e-05,2]
[348388149,1736497837831,-1592.16,9.996e-05,2]
[348388150,1736497837840,-761.52,9.996e-05,2]
[348388151,1736497837850,-800.45,9.996e-05,2]
[348388152,1736497837859,-943.7,9.996e-05,2]
[348388153,1736497837869,-890.15,9.996e-05,2]
[348388154,1736497837878,-1011.02,9.996e-05,2]
[348388155,1736497837887,-1260.0,9.996e-05,2]
[348388156,1736497837897,-500.0,9.996e-05,2]
[348388157,1736497837906,-626.93,9.996e-05,2]
[348388158,1736497837915,-1542.94,9.996e-05,2]
[348388160,1736497837924,-795.52,9.996e-05,2]
[348388162,1736497837933,-1487.0,9.996e-05,2]
[348388164,1736497837943,-2165.29,9.996e-05,2]
[348388166,1736497837952,-1045.02,9.996e-05,2]
[348388168,1736497837962,-949.36,9.996e-05,2]
[348388170,1736497837971,-1335.56,9.996e-05,2]
[348388172,1736497837981,-745.58,9.996e-05,2]
[348388174,1736497837990,-1801.03,9.996e-05,2]
[348388176,1736497838000,-1091.42,9.996e-05,2]
[348388178,1736497838009,-1166.85,9.996e-05,2]
[348388180,1736497838018,-500.0,9.996e-05,2]
[348388182,1736497838027,-3560.43,9.996e-05,2]
[348388183,1736497838037,-1163.93,9.996e-05,2]
[348388185,1736497838046,-500.0,9.996e-05,2]
[348388187,1736497838055,-500.0,9.996e-05,2]
[348388190,1736497838065,-500.0,9.996e-05,2]
[348388191,1736497838074,-2045.69,9.996e-05,2]
[348388193,1736497838083,-191.36317249,9.996e-05,2]
[348388195,1736497838094,-500.0,9.996e-05,2]
[348388197,1736497838103,-155.20554145,9.996e-05,2]
[348388199,1736497838112,-1181.11,9.996e-05,2]
[348388201,1736497838121,-503.38853202,9.996e-05,2]
[348388203,1736497838130,-500.0,9.996e-05,2]
[348388205,1736497838140,-1028.08,9.996e-05,2]
[348388207,1736497838149,-500.0,9.996e-05,2]
[348388209,1736497838158,-1473.03,9.996e-05,2]
[348388211,1736497838167,-511.04,9.996e-05,2]
[348388213,1736497838176,-500.0,9.996e-05,2]
[348388215,1736497838185,-500.0,9.996e-05,2]
[348388217,1736497838194,-500.0,9.996e-05,2]
[348388219,1736497838203,-778.19,9.996e-05,2]
[348388221,1736497838211,-1025.63,9.996e-05,2]
[348388223,1736497838220,-500.0,9.996e-05,2]
[348388225,1736497838229,-387.7617107,9.996e-05,2]
[348388227,1736497838238,-500.0,9.996e-05,2]
[348388229,1736497838247,-500.0,9.996e-05,2]
[348388231,1736497838256,-500.0,9.997e-05,2]
[348388233,1736497838265,-500.0,9.997e-05,2]
[348388235,1736497838274,-500.0,9.997e-05,2]
[348388237,1736497838283,-500.0,9.997e-05,2]
[348388239,1736497838292,-500.0,9.997e-05,2]
[348388241,1736497838302,-500.0,9.997e-05,2]
[348388243,1736497838311,-500.0,9.997e-05,2]
[348388245,1736497838320,-504.39439074,9.997e-05,2]
[348388247,1736497838330,-500.0,9.997e-05,2]
[348388249,1736497838341,-503.1530637,9.997e-05,2]
[348388274,1736497838561,-550.62,9.997e-05,2]
[348388276,1736497838575,-591.69186423,9.997e-05,2]
[348388278,1736497838584,-764.96,9.997e-05,2]
[348388279,1736497838595,-682.75,9.997e-05,2]
[348388280,1736497838604,-500.0,9.997e-05,2]
[348388281,1736497838613,-503.20599932,9.997e-05,2]
[348388282,1736497838623,-503.54564719,9.997e-05,2]
[348388283,1736497838632,-599.82,9.997e-05,2]
[348388284,1736497838642,-500.0,9.997e-05,2]
[348388285,1736497838651,-270.37212377,9.997e-05,2]
[348388286,1736497838661,-500.0,9.997e-05,2]
[348388287,1736497838670,-500.0,9.997e-05,2]
[348388288,1736497838679,-500.0,9.997e-05,2]
[348388289,1736497838689,-900.8,9.997e-05,2]
[348388290,1736497838698,-503.33359347,9.997e-05,2]
[348388291,1736497838708,-503.22456951,9.997e-05,2]
[348388292,1736497838718,-629.54,9.997e-05,2]
[348388293,1736497838730,-717.32,9.997e-05,2]
[348388294,1736497838739,-792.15,9.997e-05,2]
[348388295,1736497838747,-500.0,9.997e-05,2]
[348388296,1736497838757,-500.0,9.997e-05,2]
[348388297,1736497838767,-500.0,9.997e-05,2]
[348388298,1736497838777,-500.0,9.997e-05,2]
[348388299,1736497838786,-500.0,9.997e-05,2]
[348388300,1736497838796,-500.0,9.997e-05,2]
[348388301,1736497838805,-500.0,9.997e-05,2]
[348388302,1736497838815,-500.0,9.997e-05,2]
[348388303,1736497838824,-500.0,9.997e-05,2]
[348388304,1736497838833,-714.55,9.997e-05,2]
[348388305,1736497838844,-500.0,9.997e-05,2]
[348388306,1736497838853,-500.0,9.997e-05,2]
[348388307,1736497838862,-544.12,9.997e-05,2]
[348388308,1736497838871,-378.34049213,9.997e-05,2]
[348388309,1736497838880,-500.0,9.997e-05,2]
[348388310,1736497838890,-500.0,9.997e-05,2]
[348388311,1736497838899,-500.0,9.997e-05,2]
[348388312,1736497838908,-500.0,9.997e-05,2]
[348388313,1736497838917,-500.0,9.997e-05,2]
[348388314,1736497838926,-500.0,9.997e-05,2]
[348388315,1736497838935,-500.0,9.997e-05,2]
[348388316,1736497838945,-500.0,9.997e-05,2]
[348388317,1736497838955,-500.0,9.997e-05,2]
[348388318,1736497838967,-500.0,9.997e-05,2]
[348388319,1736497838977,-500.0,9.997e-05,2]
[348388320,1736497838987,-724.0,9.997e-05,2]
[348388321,1736497838997,-505.82,9.997e-05,2]
[348388322,1736497839007,-500.0,9.997e-05,2]
[348388323,1736497839016,-500.0,9.997e-05,2]
[348388324,1736497839025,-717.07,9.997e-05,2]
[348388325,1736497839035,-500.0,9.997e-05,2]
[348388326,1736497839046,-500.0,9.997e-05,2]
[348388327,1736497839056,-500.0,9.997e-05,2]
[348388328,1736497839066,-326.51397642,9.997e-05,2]
[348388329,1736497839077,-500.0,9.997e-05,2]
[348388330,1736497839087,-500.0,9.997e-05,2]
[348388331,1736497839097,-500.0,9.997e-05,2]
[348388332,1736497839106,-500.0,9.997e-05,2]
[348388333,1736497839116,-500.0,9.997e-05,2]
[348388334,1736497839127,-338.23,9.997e-05,2]
[348388335,1736497839137,-500.0,9.997e-05,2]
[348388336,1736497839148,-571.61249942,9.997e-05,2]
[348388337,1736497839158,-500.0,9.997e-05,2]
[348388338,1736497839168,-500.0,9.997e-05,2]
[348388339,1736497839177,-500.0,9.997e-05,2]
[348388340,1736497839186,-769.61,9.997e-05,2]
[348388341,1736497839196,-500.0,9.997e-05,2]
[348388342,1736497839206,-500.0,9.997e-05,2]
[348388343,1736497839215,-500.0,9.997e-05,2]
[348388344,1736497839224,-500.0,9.997e-05,2]
[348388345,1736497839233,-538.83,9.997e-05,2]
[348388347,1736497839242,-572.14,9.997e-05,2]
[348388349,1736497839252,-501.68552284,9.997e-05,2]
[348388350,1736497839261,-500.0,9.997e-05,2]
[348388351,1736497839271,-502.16964848,9.997e-05,2]
[348388352,1736497839280,-740.08,9.997e-05,2]
[348388353,1736497839289,-695.03,9.997e-05,2]
[348388354,1736497839299,-500.0,9.997e-05,2]
[348388355,1736497839309,-500.0,9.997e-05,2]
[348388356,1736497839318,-828.22,9.997e-05,2]
[348388357,1736497839327,-500.0,9.997e-05,2]
[348388358,1736497839337,-500.0,9.997e-05,2]
[348388359,1736497839348,-500.0,9.997e-05,2]
[348388360,1736497839358,-500.0,9.997e-05,2]
[348388361,1736497839367,-500.0,9.997e-05,2]
[348388362,1736497839377,-651.57,9.997e-05,2]
[348388363,1736497839387,-648.73348907,9.997e-05,2]
[348388364,1736497839397,-333.9712648,9.997e-05,2]
[348388365,1736497839406,-500.0,9.997e-05,2]
[348388366,1736497839415,-500.0,9.997e-05,2]
[348388367,1736497839425,-500.0,9.997e-05,2]
[348388368,1736497839434,-500.0,9.997e-05,2]
[348388369,1736497839444,-506.49,9.997e-05,2]
[348388370,1736497839453,-560.9,9.997e-05,2]
[348388371,1736497839464,-500.0,9.997e-05,2]
[348388372,1736497839473,-828.39,9.997e-05,2]
[348388373,1736497839483,-500.0,9.997e-05,2]
[348388374,1736497839492,-500.0,9.997e-05,2]
[348388375,1736497839501,-500.0,9.997e-05,2]
[348388376,1736497839511,-595.68,9.997e-05,2]
[348388377,1736497839521,-891.86,9.997e-05,2]
[348388378,1736497839530,-771.04,9.997e-05,2]
[348388379,1736497839539,-500.0,9.997e-05,2]
[348388380,1736497839548,-500.0,9.997e-05,2]
[348388381,1736497839558,-500.0,9.997e-05,2]
[348388382,1736497839567,-591.72,9.997e-05,2]
[348388383,1736497839576,-769.87,9.997e-05,2]
[348388384,1736497839586,-753.51,9.997e-05,2]
[348388385,1736497839597,-501.73003074,9.997e-05,2]
[348388386,1736497839607,-531.53,9.997e-05,2]
[348388387,1736497839616,-629.91,9.997e-05,2]
[348388388,1736497839626,-602.24,9.997e-05,2]
[348388389,1736497839636,-821.65,9.997e-05,2]
[348388390,1736497839646,-500.0,9.997e-05,2]
[348388391,1736497839658,-501.14465816,9.997e-05,2]
[348388392,1736497839667,-500.0,9.997e-05,2]
[348388393,1736497839677,-567.61,9.997e-05,2]
[348388394,1736497839686,-554.8,9.997e-05,2]
[348388395,1736497839696,-540.50589713,9.997e-05,2]
[348388396,1736497839705,-500.0,9.997e-05,2]
[348388397,1736497839716,-741.32,9.997e-05,2]
[348388398,1736497839730,-500.0,9.997e-05,2]
[348388399,1736497839740,-500.0,9.997e-05,2]
[348388400,1736497839749,-500.0,9.997e-05,2]
[348388401,1736497839760,-500.0,9.997e-05,2]
[348388402,1736497839769,-500.0,9.997e-05,2]
[348388403,1736497839779,-1402.42,9.997e-05,2]
[348388404,1736497839788,-310.82688619,9.997e-05,2]
[348388405,1736497839799,-506.27,9.997e-05,2]
[348388406,1736497839809,-1463.78,9.997e-05,2]
[348388407,1736497839819,-3674.47,9.997e-05,2]
[348388408,1736497839828,-509.05,9.997e-05,2]
[348388409,1736497839838,-500.0,9.997e-05,2]
[348388410,1736497839850,-2429.54,9.997e-05,2]
[348388411,1736497839859,-1646.34,9.997e-05,2]
[348388412,1736497839869,-2091.28,9.997e-05,2]
[348388413,1736497839878,-636.07,9.997e-05,2]
[348388414,1736497839887,-664.41,9.997e-05,2]
[348388415,1736497839897,-500.0,9.997e-05,2]
[348388416,1736497839906,-500.0,9.997e-05,2]
[348388417,1736497839916,-5900.77,9.997e-05,2]
[348388418,1736497839925,-501.26982791,9.997e-05,2]
[348388419,1736497839934,-500.0,9.997e-05,2]
[348388420,1736497839944,-2193.19,9.997e-05,2]
[348388421,1736497839953,-1353.67,9.997e-05,2]
[348388422,1736497839963,-511.56,9.997e-05,2]
[348388423,1736497839973,-820.65,9.997e-05,2]
[348388424,1736497839983,-638.52,9.997e-05,2]
[348388425,1736497839992,-500.0,9.997e-05,2]
[348388426,1736497840002,-3354.58,9.997e-05,2]
[348388427,1736497840011,-1327.54,9.997e-05,2]
[348388428,1736497840021,-605.87,9.997e-05,2]
[348388429,1736497840031,-1278.01,9.997e-05,2]
[348388430,1736497840040,-500.0,9.997e-05,2]
[348388431,1736497840050,-500.0,9.997e-05,2]
[348388432,1736497840060,-500.0,9.997e-05,2]
[348388433,1736497840070,-2677.75,9.997e-05,2]
[348388434,1736497840079,-1696.87,9.997e-05,2]
[348388435,1736497840088,-500.0,9.997e-05,2]
[348388436,1736497840099,-500.0,9.997e-05,2]
[348388437,1736497840108,-2964.52,9.997e-05,2]
[348388438,1736497840117,-500.0,9.997e-05,2]
[348388439,1736497840126,-693.0,9.997e-05,2]
[348388440,1736497840135,-985.32,9.997e-05,2]
[348388441,1736497840145,-500.0,9.997e-05,2]
[348388442,1736497840155,-500.0,9.997e-05,2]
[348388443,1736497840164,-500.0,9.997e-05,2]
[348388444,1736497840173,-500.0,9.997e-05,2]
[348388445,1736497840182,-856.02,9.997e-05,2]
[348388446,1736497840191,-701.91,9.997e-05,2]
[348388447,1736497840200,-1053.69,9.997e-05,2]
[348388448,1736497840209,-935.15,9.997e-05,2]
[348388449,1736497840218,-697.87,9.997e-05,2]
[348388450,1736497840227,-500.0,9.997e-05,2]
[348388451,1736497840237,-2930.24,9.997e-05,2]
[348388452,1736497840246,-799.85,9.997e-05,2]
[348388453,1736497840255,-1166.57,9.997e-05,2]
[348388454,1736497840264,-2580.59,9.997e-05,2]
[348388455,1736497840273,-756.33,9.997e-05,2]
[348388456,1736497840282,-2365.45,9.997e-05,2]
[348388457,1736497840291,-930.26,9.997e-05,2]
[348388458,1736497840302,-2624.51,9.997e-05,2]
[348388459,1736497840311,-500.0,9.997e-05,2]
[348388460,1736497840321,-1050.16,9.997e-05,2]
[348388461,1736497840331,-168.48016642,9.997e-05,2]
[348388462,1736497840340,-500.0,9.997e-05,2]
[348388463,1736497840350,-500.0,9.997e-05,2]
[348388464,1736497840359,-685.54,9.997e-05,2]
[348388465,1736497840368,-500.0,9.997e-05,2]
[348388466,1736497840377,-500.43081737,9.997e-05,2]
[348388467,1736497840388,-908.28,9.997e-05,2]
[348388468,1736497840397,-510.24,9.997e-05,2]
[348388469,1736497840406,-735.09,9.997e-05,2]
[348388470,1736497840416,-745.62,9.997e-05,2]
[348388471,1736497840426,-996.81,9.997e-05,2]
[348388472,1736497840435,-500.0,9.997e-05,2]
[348388473,1736497840444,-473.40722183,9.997e-05,2]
[348388474,1736497840453,-507.49,9.997e-05,2]
[348388475,1736497840462,-859.23,9.997e-05,2]
[348388476,1736497840471,-906.59,9.997e-05,2]
[348388477,1736497840481,-1136.9,9.997e-05,2]
[348388478,1736497840490,-522.04,9.997e-05,2]
[348388479,1736497840499,-500.0,9.997e-05,2]
[348388480,1736497840508,-500.0,9.997e-05,2]
[348388481,1736497840517,-986.48,9.997e-05,2]
[348388482,1736497840527,-563.72284389,9.997e-05,2]
[348388483,1736497840536,-800.57,9.997e-05,2]
[348388484,1736497840546,-500.0,9.997e-05,2]
[348388485,1736497840555,-1110.34,9.997e-05,2]
[348388486,1736497840564,-500.0,9.997e-05,2]
[348388487,1736497840573,-909.87,9.997e-05,2]
[348388488,1736497840583,-931.12,9.997e-05,2]
[348388489,1736497840593,-780.17,9.997e-05,2]
[348388490,1736497840602,-503.93246675,9.997e-05,2]
[348388491,1736497840611,-500.0,9.997e-05,2]
[348388492,1736497840620,-502.21321474,9.997e-05,2]
[348388493,1736497840630,-956.6,9.997e-05,2]
[348388494,1736497840639,-500.0,9.997e-05,2]
[348388495,1736497840649,-577.73,9.997e-05,2]
[348388496,1736497840658,-1242.3,9.997e-05,2]
[348388497,1736497840668,-649.01,9.997e-05,2]
[348388498,1736497840677,-500.0,9.997e-05,2]
[348388499,1736497840686,-825.95,9.997e-05,2]
[348388500,1736497840695,-713.47,9.997e-05,2]
[348388501,1736497840704,-500.0,9.997e-05,2]
[348388502,1736497840714,-1287.74,9.997e-05,2]
[348388503,1736497840727,-504.3808806,9.997e-05,2]
[348388504,1736497840737,-1138.99,9.997e-05,2]
[348388505,1736497840746,-500.0,9.997e-05,2]
[348388506,1736497840755,-694.11,9.997e-05,2]
[348388507,1736497840766,-500.0,9.997e-05,2]
[348388508,1736497840775,-501.81783673,9.997e-05,2]
[348388509,1736497840785,-500.0,9.997e-05,2]
[348388510,1736497840794,-1265.08,9.997e-05,2]
[348388511,1736497840808,-609.28,9.997e-05,2]
[348388512,1736497840818,-1000.0,9.997e-05,2]
[348388513,1736497840828,-893.03,9.997e-05,2]
[348388514,1736497840837,-500.0,9.997e-05,2]
[348388515,1736497840847,-500.0,9.997e-05,2]
[348388516,1736497840857,-503.23374115,9.997e-05,2]
[348388517,1736497840866,-565.43,9.997e-05,2]
[348388518,1736497840875,-503.41055391,9.997e-05,2]
[348388519,1736497840885,-827.03,9.997e-05,2]
[348388520,1736497840894,-1084.02,9.997e-05,2]
[348388521,1736497840904,-500.0,9.997e-05,2]
[348388522,1736497840913,-505.53658496,9.997e-05,2]
[348388523,1736497840922,-1786.99,9.997e-05,2]
[348388524,1736497840932,-317.85662113,9.997e-05,2]
[348388525,1736497840941,-864.72,9.997e-05,2]
[348388526,1736497840950,-500.0,9.997e-05,2]
[348388527,1736497840960,-807.12,9.997e-05,2]
[348388528,1736497840971,-2372.58,9.997e-05,2]
[348388529,1736497840981,-502.01895206,9.997e-05,2]
[348388530,1736497840994,-500.0,9.997e-05,2]
[348388531,1736497841003,-4869.41768409,9.997e-05,2]
[348388532,1736497841012,-502.04790802,9.998e-05,2]
[348388533,1736497841022,-362.71843352,9.998e-05,2]
[348388534,1736497841031,-500.0,9.998e-05,2]
[348388535,1736497841041,-500.0,9.998e-05,2]
[348388536,1736497841050,-500.0,9.998e-05,2]
[348388537,1736497841059,-500.0,9.998e-05,2]
[348388538,1736497841069,-500.0,9.998e-05,2]
[348388539,1736497841078,-500.0,9.998e-05,2]
[348388540,1736497841088,-500.0,9.998e-05,2]
[348388541,1736497841097,-500.0,9.998e-05,2]
[348388542,1736497841107,-500.0,9.998e-05,2]
[348388543,1736497841116,-500.0,9.998e-05,2]
[348388544,1736497841125,-502.48217159,9.998e-05,2]
[348388545,1736497841136,-1647.97398634,9.998e-05,2]
[348388546,1736497841146,-500.0,9.998e-05,2]
[348388547,1736497841155,-500.0,9.998e-05,2]
[348388548,1736497841165,-500.0,9.998e-05,2]
[348388549,1736497841174,-506.76067206,9.998e-05,2]
[348388550,1736497841183,-500.0,9.998e-05,2]
[348388551,1736497841192,-500.0,9.998e-05,2]
[348388552,1736497841202,-504.03504514,9.998e-05,2]
[348388553,1736497841211,-500.0,9.998e-05,2]
[348388554,1736497841220,-500.0,9.998e-05,2]
[348388555,1736497841230,-500.0,9.998e-05,2]
[348388556,1736497841239,-500.0,9.998e-05,2]
[348388557,1736497841248,-500.0,9.998e-05,2]
[348388558,1736497841258,-500.0,9.998e-05,2]
[348388559,1736497841268,-1026.2,9.998e-05,2]
[348388560,1736497841277,-500.0,9.998e-05,2]
[348388561,1736497841286,-500.0,9.998e-05,2]
[348388562,1736497841296,-500.0,9.998e-05,2]
[348388563,1736497841305,-725.56,9.998e-05,2]
[348388564,1736497841314,-507.68163865,9.998e-05,2]
[348388565,1736497841324,-500.0,9.998e-05,2]
[348388566,1736497841333,-500.0,9.998e-05,2]
[348388567,1736497841343,-21188.12726066,9.998e-05,2]
[348388568,1736497841352,-500.0,9.999e-05,2]
[348388569,1736497841361,-500.0,9.999e-05,2]
[348388570,1736497841371,-500.0,9.999e-05,2]
[348388571,1736497841380,-500.0,9.999e-05,2]
[348388572,1736497841390,-502.70747059,9.999e-05,2]
[348388573,1736497841400,-500.0,9.999e-05,2]
[348388574,1736497841409,-500.0,9.999e-05,2]
[348388575,1736497841418,-500.0,9.999e-05,2]
[348388576,1736497841428,-500.0,9.999e-05,2]
[348388577,1736497841437,-500.0,9.999e-05,2]
[348388578,1736497841447,-500.0,9.999e-05,2]
[348388579,1736497841456,-580.94,9.999e-05,2]
[348388580,1736497841465,-500.0,9.999e-05,2]
[348388581,1736497841475,-501.37483344,9.999e-05,2]
[348388582,1736497841484,-500.0,9.999e-05,2]
[348388583,1736497841493,-500.0,9.999e-05,2]
[348388584,1736497841502,-502.0190942,9.999e-05,2]
[348388585,1736497841511,-500.0,9.999e-05,2]
[348388586,1736497841520,-502.29565548,9.999e-05,2]
[348388587,1736497841530,-501.6688505,9.999e-05,2]
[348388588,1736497841539,-500.0,9.999e-05,2]
[348388589,1736497841548,-616.21141947,9.999e-05,2]
[348388590,1736497841557,-500.0,9.999e-05,2]
[348388591,1736497841567,-502.73782996,9.999e-05,2]
[348388592,1736497841576,-624.53736201,9.999e-05,2]
[348388593,1736497841585,-500.0,9.999e-05,2]
[348388594,1736497841594,-500.0,9.999e-05,2]
[348388595,1736497841603,-500.0,9.999e-05,2]
[348388596,1736497841612,-500.0,9.999e-05,2]
[348388597,1736497841622,-503.5247854,9.999e-05,2]
[348388598,1736497841631,-500.0,9.999e-05,2]
[348388599,1736497841643,-500.0,9.999e-05,2]
[348388600,1736497841653,-502.86025338,9.999e-05,2]
[348388601,1736497841664,-500.0,9.999e-05,2]
[348388602,1736497841673,-500.0,9.999e-05,2]
[348388603,1736497841682,-503.1501421,9.999e-05,2]
[348388604,1736497841692,-500.0,9.999e-05,2]
[348388605,1736497841702,-500.0,9.999e-05,2]
[348388606,1736497841712,-500.0,9.999e-05,2]
[348388607,1736497841725,-339.71263343,9.999e-05,2]
[348388608,1736497841734,-503.9180861,9.999e-05,2]
[348388609,1736497841745,-500.0,9.999e-05,2]
[348388610,1736497841754,-500.0,9.999e-05,2]
[348388611,1736497841763,-500.0,9.999e-05,2]
[348388612,1736497841773,-502.4297246,9.999e-05,2]
[348388613,1736497841782,-502.25545207,9.999e-05,2]
[348388614,1736497841792,-500.0,9.999e-05,2]
[348388615,1736497841803,-500.0,9.999e-05,2]
[348388616,1736497841813,-500.0,9.999e-05,2]
[348388617,1736497841823,-500.0,9.999e-05,2]
[348388618,1736497841832,-500.0,9.999e-05,2]
[348388619,1736497841841,-500.0,9.999e-05,2]
[348388620,1736497841851,-504.30975864,9.999e-05,2]
[348388621,1736497841860,-500.0,9.999e-05,2]
[348388622,1736497841869,-500.0,9.999e-05,2]
[348388623,1736497841878,-501.465658,9.999e-05,2]
[348388624,1736497841887,-500.0,9.999e-05,2]
[348388625,1736497841898,-500.0,9.999e-05,2]
[348388626,1736497841907,-500.0,9.999e-05,2]
[348388627,1736497841917,-502.07895928,9.999e-05,2]
[348388628,1736497841927,-501.9398778,9.999e-05,2]
[348388629,1736497841938,-500.0,9.999e-05,2]
[348388630,1736497841948,-500.0,9.999e-05,2]
[348388631,1736497841958,-642.0362101,9.999e-05,2]
[348388632,1736497841967,-500.0,9.999e-05,2]
[348388633,1736497841977,-500.0,9.999e-05,2]
[348388634,1736497841986,-501.91280292,9.999e-05,2]
[348388635,1736497841996,-500.0,9.999e-05,2]
[348388636,1736497842005,-500.0,9.999e-05,2]
[348388637,1736497842014,-500.0,9.999e-05,2]
[348388638,1736497842024,-500.0,9.999e-05,2]
[348388639,1736497842034,-500.0,9.999e-05,2]
[348388640,1736497842043,-513.86057102,9.999e-05,2]
[348388641,1736497842052,-500.0,9.999e-05,2]
[348388642,1736497842061,-501.0925258,9.999e-05,2]
[348388643,1736497842070,-500.0,9.999e-05,2]
[348388644,1736497842079,-500.0,9.999e-05,2]
[348388645,1736497842088,-282.42,9.999e-05,2]
[348388646,1736497842097,-502.32,9.999e-05,2]
[348388647,1736497842106,-3753.2,9.999e-05,2]
[348388648,1736497842115,-306.8961115,9.999e-05,2]
[348388649,1736497842126,-500.0,9.999e-05,2]
[348388650,1736497842136,-500.0,9.999e-05,2]
[348388651,1736497842145,-516.63,9.999e-05,2]
[348388652,1736497842156,-500.0,9.999e-05,2]
[348388653,1736497842167,-211.31287039,9.999e-05,2]
[348388654,1736497842178,-500.0,9.999e-05,2]
[348388655,1736497842189,-500.0,9.999e-05,2]
[348388656,1736497842199,-500.0,9.999e-05,2]
[348388657,1736497842210,-503.08002305,9.999e-05,2]
[348388658,1736497842220,-500.0,9.999e-05,2]
[348388659,1736497842230,-500.0,9.999e-05,2]
[348388660,1736497842240,-500.0,9.999e-05,2]
[348388661,1736497842250,-500.0,9.999e-05,2]
[348388662,1736497842260,-502.0744317,9.999e-05,2]
[348388663,1736497842271,-500.0,9.999e-05,2]
[348388664,1736497842281,-502.89445788,9.999e-05,2]
[348388665,1736497842291,-501.31742119,9.999e-05,2]
[348388666,1736497842315,-320.38714847,9.999e-05,2]
[348388667,1736497842324,-500.0,9.999e-05,2]
[348388668,1736497842335,-504.53485806,9.999e-05,2]
[348388670,1736497842347,-500.0,9.999e-05,2]
[348388671,1736497842356,-500.0,9.999e-05,2]
[348388673,1736497842365,-500.0,9.999e-05,2]
[348388675,1736497842375,-500.0,9.999e-05,2]
[348388676,1736497842384,-504.77013124,9.999e-05,2]
[348388677,1736497842393,-500.0,9.999e-05,2]
[348388678,1736497842403,-500.0,9.999e-05,2]
[348388679,1736497842412,-508.17501465,9.999e-05,2]
[348388680,1736497842420,-500.0,9.999e-05,2]
[348388681,1736497842430,-500.0,9.999e-05,2]
[348388682,1736497842440,-500.0,9.999e-05,2]
[348388683,1736497842453,-504.80713807,9.999e-05,2]
[348388684,1736497842463,-500.0,9.999e-05,2]
[348388685,1736497842473,-500.0,9.999e-05,2]
[348388686,1736497842482,-502.12273017,9.999e-05,2]
[348388687,1736497842491,-508.05,9.999e-05,2]
[348388688,1736497842500,-500.0,9.999e-05,2]
[348388689,1736497842510,-500.0,9.999e-05,2]
[348388690,1736497842519,-500.0,9.999e-05,2]
[348388691,1736497842528,-500.0,9.999e-05,2]
[348388692,1736497842537,-500.0,9.999e-05,2]
[348388693,1736497842547,-500.0,9.999e-05,2]
[348388694,1736497842557,-500.0,9.999e-05,2]
[348388695,1736497842568,-500.0,9.999e-05,2]
[348388696,1736497842578,-177.86,9.999e-05,2]
[348388697,1736497842588,-500.0,9.999e-05,2]
[348388698,1736497842601,-500.0,9.999e-05,2]
[348388699,1736497842610,-500.0,9.999e-05,2]
[348388700,1736497842773,-279.4781576,9.999e-05,2]
[348388701,1736497842806,-506.71555151,9.999e-05,2]
[348388702,1736497842816,-500.0,9.999e-05,2]
[348388703,1736497842826,-502.58721747,9.999e-05,2]
[348388704,1736497842835,-500.0,9.999e-05,2]